bitfinex/quotes_BTCUSD_20250814
["timestamp","ask_amount","ask_price","bid_price","bid_amount"]
[1755152584981,1.41376402,121300.0,121290.0,0.32528]
[1755152585221,0.58309407,121290.0,121270.0,0.11187119]
[1755152585434,0.57404238,121280.0,121270.0,0.11187119]
[1755152585582,0.5869094,121280.0,121270.0,0.30951119]
[1755152585790,0.5837694,121280.0,121270.0,0.30951119]
[1755152586428,0.5837694,121280.0,121270.0,0.43715119]
[1755152586631,0.66625383,121280.0,121270.0,0.43715119]
[1755152586866,0.67160383,121280.0,121270.0,0.31051119]
[1755152587068,0.67160383,121280.0,121270.0,0.30951119]
[1755152587234,0.67960383,121280.0,121270.0,0.31051119]
[1755152587435,1.11260383,121280.0,121270.0,0.43915119]
[1755152587616,1.09763681,121280.0,121270.0,0.32658594]
[1755152587812,1.11261954,121280.0,121270.0,0.32658594]
[1755152588095,1.01961954,121280.0,121270.0,0.32658594]
[1755152588297,1.01961954,121280.0,121270.0,0.32558594]
[1755152588805,1.18452719,121280.0,121270.0,0.32532]
[1755152588996,1.25321719,121280.0,121270.0,0.32632]
[1755152589215,1.25321719,121280.0,121270.0,0.19868]
[1755152589418,1.28690572,121280.0,121270.0,0.19868]
[1755152589622,1.28690572,121280.0,121270.0,0.32532]
[1755152589837,1.28790572,121280.0,121270.0,0.32532]
[1755152590291,0.18992125,121270.0,121260.0,0.00316508]
[1755152590495,0.9251385,121270.0,121260.0,0.32848508]
[1755152590714,0.9720785,121270.0,121260.0,0.20084508]
[1755152590893,0.76346725,121270.0,121260.0,0.20084508]
[1755152591134,0.9283885,121270.0,121260.0,0.32852508]
[1755152591369,0.9720785,121270.0,121260.0,0.32852508]
[1755152591566,0.9760785,121270.0,121260.0,0.32852508]
[1755152591784,0.34,121260.0,121250.0,0.02472558]
[1755152591959,1.00836954,121260.0,121250.0,0.02472558]
[1755152592189,1.01161954,121260.0,121250.0,0.02472558]
[1755152592314,1.01161954,121260.0,121250.0,0.01483789]
[1755152592986,1.01161954,121260.0,121250.0,0.14251789]
[1755152593368,0.18219041,121260.0,121250.0,0.01483789]
[1755152593567,0.18219739,121260.0,121250.0,0.14251789]
[1755152593766,0.67452652,121260.0,121250.0,0.14251789]
[1755152593990,0.67452652,121260.0,121250.0,0.01483789]
[1755152593991,0.67662652,121260.0,121250.0,0.01483789]
[1755152594151,0.53054739,121260.0,121250.0,0.14251789]
[1755152594352,1.01362652,121260.0,121250.0,0.14251789]
[1755152594575,0.52219739,121260.0,121250.0,0.14251789]
[1755152594777,1.00727652,121260.0,121250.0,0.01483789]
[1755152594987,0.18119739,121260.0,121250.0,0.34023789]
[1755152595203,0.68062652,121260.0,121250.0,0.34023789]
[1755152595577,0.67527652,121260.0,121250.0,0.21255789]
[1755152595970,0.67962652,121260.0,121250.0,0.21255789]
[1755152596178,0.67962652,121260.0,121250.0,0.34123789]
[1755152596469,0.68165256,121260.0,121250.0,0.34123789]
[1755152596896,0.67965256,121260.0,121250.0,0.34123789]
[1755152597099,1.01965256,121260.0,121250.0,0.19772]
[1755152597226,1.02065256,121260.0,121250.0,0.19772]
[1755152597840,0.53757343,121260.0,121250.0,0.19772]
[1755152598082,0.53957343,121260.0,121250.0,0.19772]
[1755152598529,0.454989,121260.0,121250.0,0.3254]
[1755152599136,0.94106813,121260.0,121250.0,0.3254]
[1755152599260,0.94316813,121260.0,121250.0,0.3254]
[1755152599481,0.94317343,121260.0,121250.0,0.3254]
[1755152599684,1.02565786,121260.0,121250.0,0.3254]
[1755152601481,1.02565786,121260.0,121250.0,0.19772]
[1755152601691,1.02565786,121260.0,121250.0,0.3254]
[1755152602116,1.02355786,121260.0,121250.0,0.3254]
[1755152602278,0.68030786,121260.0,121250.0,0.3254]
[1755152602686,0.703,121250.0,121220.0,0.34]
[1755152602910,1.28658461,121250.0,121230.0,0.19772]
[1755152603131,0.08167625,121240.0,121230.0,0.19772]
[1755152603340,0.0966973,121240.0,121230.0,0.19772]
[1755152603947,0.0966973,121240.0,121230.0,0.16497566]
[1755152604165,0.0966973,121240.0,121230.0,0.63285566]
[1755152604356,0.0966973,121240.0,121230.0,0.34]
[1755152604562,0.0966973,121240.0,121220.0,0.364721]
[1755152604732,0.0966973,121240.0,121230.0,0.12784]
[1755152604733,0.10636703,121240.0,121230.0,0.12784]
[1755152604938,0.60461206,121240.0,121230.0,0.23068]
[1755152605158,1.10820709,121240.0,121230.0,0.30052]
[1755152605317,0.60996206,121240.0,121230.0,0.4284]
[1755152605529,1.10820709,121240.0,121230.0,0.30052]
[1755152605758,0.60461206,121240.0,121230.0,0.4284]
[1755152606172,0.60461206,121240.0,121230.0,0.30052]
[1755152606395,0.60461206,121240.0,121230.0,0.4284]
[1755152606628,0.60461206,121240.0,121230.0,0.42836]
[1755152606847,0.60461206,121240.0,121230.0,0.30052]
[1755152607046,0.0966973,121240.0,121230.0,0.4284]
[1755152607248,0.0966973,121240.0,121230.0,0.30052]
[1755152607532,0.0966973,121240.0,121230.0,0.42856]
[1755152607749,0.0966973,121240.0,121230.0,0.19772]
[1755152607912,0.0966973,121240.0,121230.0,0.36269566]
[1755152608127,0.0966973,121240.0,121230.0,0.19772]
[1755152609122,0.0966973,121240.0,121230.0,0.32576]
[1755152609714,0.0966973,121240.0,121230.0,0.49073566]
[1755152610379,0.0966973,121240.0,121230.0,0.29301566]
[1755152610700,0.0966973,121240.0,121230.0,0.16497566]
[1755152610909,0.0966973,121240.0,121230.0,0.50497566]
[1755152611123,0.09671383,121240.0,121230.0,0.63301566]
[1755152612948,0.09671383,121240.0,121230.0,0.65773566]
[1755152613201,0.09671383,121240.0,121230.0,0.66189566]
[1755152613442,0.09671383,121240.0,121230.0,0.65789566]
[1755152613657,0.09671383,121240.0,121230.0,0.65989566]
[1755152613878,0.09659175,121240.0,121230.0,0.65989566]
[1755152614084,0.09660785,121240.0,121230.0,0.65789566]
[1755152614305,0.09660785,121240.0,121230.0,0.66089566]
[1755152614594,0.09660785,121240.0,121230.0,0.66389566]
[1755152615145,0.09660785,121240.0,121230.0,0.96441566]
[1755152615310,0.09660785,121240.0,121230.0,0.96437566]
[1755152615514,0.01505368,121240.0,121230.0,0.73341566]
[1755152615738,0.01505368,121240.0,121230.0,0.86157566]
[1755152615956,0.003,121260.0,121230.0,0.81613891]
[1755152616154,0.003,121270.0,121260.0,0.16493485]
[1755152616361,0.003,121270.0,121260.0,0.63313485]
[1755152617002,0.003,121270.0,121260.0,0.63317485]
[1755152617624,0.003,121270.0,121260.0,0.63335506]
[1755152617800,0.003,121270.0,121260.0,0.57835148]
[1755152618013,0.003,121270.0,121260.0,0.63635506]
[1755152620517,0.003,121270.0,121260.0,0.50807506]
[1755152620518,0.08572325,121270.0,121260.0,0.50807506]
[1755152620924,0.08572325,121270.0,121260.0,0.63639506]
[1755152621706,0.08893325,121270.0,121260.0,0.63639506]
[1755152621952,0.08893325,121270.0,121260.0,0.63539506]
[1755152622464,0.09812658,121270.0,121260.0,0.00314021]
[1755152622716,0.09812658,121270.0,121260.0,0.12950021]
[1755152622959,0.09812658,121270.0,121260.0,0.00114021]
[1755152623188,0.09812658,121270.0,121260.0,0.12954021]
[1755152623867,0.62955057,121270.0,121260.0,0.12954021]
[1755152624307,1.26810765,121270.0,121260.0,0.00014021]
[1755152624511,1.34295536,121270.0,121260.0,0.12850021]
[1755152624977,0.85651137,121270.0,121260.0,0.00014021]
[1755152625232,0.85651137,121270.0,121260.0,0.19778021]
[1755152625441,0.85651137,121270.0,121260.0,0.32610021]
[1755152625657,0.86051137,121270.0,121260.0,0.32610021]
[1755152625870,0.52051137,121270.0,121260.0,0.32610021]
[1755152626078,0.44197429,121270.0,121260.0,0.19778021]
[1755152626298,0.44197429,121270.0,121260.0,0.32610021]
[1755152626515,0.43897429,121270.0,121260.0,0.32610021]
[1755152626917,0.43797429,121270.0,121260.0,0.32610021]
[1755152627559,0.17597429,121270.0,121260.0,0.32610021]
[1755152627878,0.17997429,121270.0,121260.0,0.32610021]
[1755152628131,0.23995879,121270.0,121260.0,0.32610021]
[1755152628475,0.27750861,121270.0,121260.0,0.32610021]
[1755152628693,0.23252861,121270.0,121260.0,0.32610021]
[1755152629238,0.22333528,121270.0,121260.0,0.32610021]
[1755152629454,0.22333528,121270.0,121260.0,0.19778021]
[1755152629594,0.22333528,121270.0,121260.0,0.32606021]
[1755152631374,0.22333528,121270.0,121260.0,0.19778021]
[1755152631578,0.22333528,121270.0,121260.0,0.32602021]
[1755152631800,0.29461321,121270.0,121260.0,0.32602021]
[1755152632013,0.7810572,121270.0,121260.0,0.32598021]
[1755152632226,1.1660372,121270.0,121260.0,0.19778021]
[1755152632654,1.1660372,121270.0,121260.0,0.32598021]
[1755152633443,1.1660372,121270.0,121260.0,0.32594021]
[1755152634249,0.67959321,121270.0,121260.0,0.32594021]
[1755152635101,1.1660372,121270.0,121260.0,0.32594021]
[1755152635253,0.67959321,121270.0,121260.0,0.32586021]
[1755152635458,0.67960383,121270.0,121260.0,0.32586021]
[1755152636706,0.56777612,121270.0,121260.0,0.32586021]
[1755152636936,0.56777612,121270.0,121260.0,0.19778021]
[1755152637142,0.56777612,121270.0,121260.0,0.32586021]
[1755152637789,0.22777612,121270.0,121260.0,0.32582021]
[1755152638009,0.15649819,121270.0,121260.0,0.32582021]
[1755152638460,0.15328819,121270.0,121260.0,0.32582021]
[1755152638675,0.15649819,121270.0,121260.0,0.32582021]
[1755152638901,0.15649819,121270.0,121260.0,0.19778021]
[1755152639390,0.15649819,121270.0,121260.0,0.32598021]
[1755152639757,0.20644801,121270.0,121260.0,0.32598021]
[1755152640166,0.20323801,121270.0,121260.0,0.32598021]
[1755152640982,0.20644801,121270.0,121260.0,0.32598021]
[1755152641215,0.10773837,121270.0,121260.0,0.36271506]
[1755152641415,0.09272325,121270.0,121260.0,0.19778021]
[1755152641622,0.09272325,121270.0,121260.0,0.32594021]
[1755152641831,0.10751287,121270.0,121260.0,0.32594021]
[1755152642084,0.09272325,121270.0,121260.0,0.49087506]
[1755152642292,0.08372325,121270.0,121260.0,0.49087506]
[1755152642473,0.08372325,121270.0,121260.0,0.32590021]
[1755152642716,0.08472325,121270.0,121260.0,0.49083506]
[1755152642926,0.08472325,121270.0,121260.0,0.36271506]
[1755152643136,0.08472325,121270.0,121260.0,0.32590021]
[1755152643388,0.08372325,121270.0,121260.0,0.49083506]
[1755152643861,0.08472325,121270.0,121260.0,0.49083506]
[1755152644080,0.08372325,121270.0,121260.0,0.32590021]
[1755152644514,0.09239558,121270.0,121260.0,0.19778021]
[1755152644731,0.16245329,121270.0,121260.0,0.19778021]
[1755152644945,0.42445329,121270.0,121260.0,0.32590021]
[1755152645144,0.43946841,121270.0,121260.0,0.32590021]
[1755152645570,0.42758608,121270.0,121260.0,0.32590021]
[1755152645898,0.42758608,121270.0,121260.0,0.32006021]
[1755152646115,0.43079608,121270.0,121260.0,0.32006021]
[1755152646371,0.43079608,121270.0,121260.0,0.19202021]
[1755152646528,0.43079608,121270.0,121260.0,0.32006021]
[1755152646734,0.43179608,121270.0,121260.0,0.32006021]
[1755152647212,0.43279608,121270.0,121260.0,0.32006021]
[1755152647422,0.43279608,121270.0,121260.0,0.32002021]
[1755152649812,0.43485608,121270.0,121260.0,0.32002021]
[1755152650328,0.43485608,121270.0,121260.0,0.19202021]
[1755152650531,0.47864169,121270.0,121260.0,0.31998021]
[1755152652095,0.41179398,121270.0,121260.0,0.31998021]
[1755152652307,0.36594837,121270.0,121260.0,0.31990021]
[1755152653163,0.36800837,121270.0,121260.0,0.31990021]
[1755152653398,0.36800837,121270.0,121260.0,0.19202021]
[1755152653615,0.36800837,121270.0,121260.0,0.31990021]
[1755152653819,0.36594837,121270.0,121260.0,2.31990021]
[1755152653991,0.40490321,121270.0,121260.0,2.31990021]
[1755152655277,0.40490321,121270.0,121260.0,2.19202021]
[1755152655454,0.36800837,121270.0,121260.0,2.32002021]
[1755152655980,0.10600837,121270.0,121260.0,2.32002021]
[1755152656210,0.09099325,121270.0,121260.0,2.32002021]
[1755152656419,0.08572325,121270.0,121260.0,2.32002021]
[1755152656978,0.08572325,121270.0,121260.0,2.19202021]
[1755152657211,0.09101325,121270.0,121260.0,2.31998021]
[1755152658033,0.09101325,121270.0,121260.0,2.19202021]
[1755152658385,0.71076204,121270.0,121260.0,2.19202021]
[1755152658560,0.72577716,121270.0,121260.0,2.31994021]
[1755152659448,0.22787892,121270.0,121260.0,2.31994021]
[1755152662889,0.22787892,121270.0,121260.0,2.19202021]
[1755152663115,0.22787892,121270.0,121260.0,2.32030021]
[1755152663559,0.22787892,121270.0,121260.0,2.19202021]
[1755152663996,0.22787892,121270.0,121260.0,2.32026021]
[1755152664213,0.16103121,121270.0,121260.0,2.32026021]
[1755152664412,0.08572325,121270.0,121260.0,2.19202021]
[1755152664828,0.08572325,121270.0,121260.0,2.32022021]
[1755152669374,0.08572325,121270.0,121260.0,2.35695506]
[1755152669580,0.08572325,121270.0,121260.0,2.19202021]
[1755152669776,0.08572325,121270.0,121260.0,2.39341663]
[1755152669981,0.08572325,121270.0,121260.0,2.32014021]
[1755152670186,0.08472325,121270.0,121260.0,2.32014021]
[1755152670396,0.09281857,121270.0,121260.0,2.32014021]
[1755152670605,0.09281857,121270.0,121260.0,2.32114021]
[1755152670856,0.08372325,121270.0,121260.0,2.32114021]
[1755152671063,0.08372325,121270.0,121260.0,2.32018021]
[1755152672066,0.08372325,121270.0,121260.0,2.48511506]
[1755152672860,0.08372325,121270.0,121260.0,2.35695506]
[1755152673238,0.08372325,121270.0,121260.0,2.55831148]
[1755152676021,0.08372325,121270.0,121260.0,2.89831148]
[1755152676235,0.08372325,121270.0,121260.0,2.89931148]
[1755152676446,0.08372325,121270.0,121260.0,2.82603506]
[1755152676648,0.08372325,121270.0,121260.0,2.9291562]
[1755152676809,0.001,121270.0,121260.0,2.9291562]
[1755152677014,0.001,121270.0,121260.0,2.9281962]
[1755152677482,0.001,121270.0,121260.0,2.9301962]
[1755152677891,0.001,121270.0,121260.0,2.82707506]
[1755152678309,0.001,121270.0,121260.0,2.93050938]
[1755152678449,0.001,121270.0,121260.0,2.93150938]
[1755152678853,0.001,121270.0,121260.0,2.73948917]
[1755152679079,0.001,121270.0,121260.0,2.73648917]
[1755152679521,0.001,121270.0,121260.0,2.74048917]
[1755152681630,0.08372325,121270.0,121260.0,2.74048917]
[1755152682151,0.08372325,121270.0,121260.0,2.61236917]
[1755152682346,0.08372325,121270.0,121260.0,2.50893485]
[1755152682560,0.08372325,121270.0,121260.0,2.63697485]
[1755152682771,0.08372325,121270.0,121260.0,2.71076927]
[1755152683789,0.08372325,121270.0,121260.0,2.73548127]
[1755152684006,0.08372325,121270.0,121260.0,2.7353948]
[1755152685020,0.08372325,121270.0,121260.0,3.0357948]
[1755152685432,0.08372325,121270.0,121260.0,3.0337948]
[1755152685654,0.08372325,121270.0,121260.0,3.0347948]
[1755152685877,0.08372325,121270.0,121260.0,3.0327948]
[1755152686099,0.08372325,121270.0,121260.0,2.95900685]
[1755152686533,0.08372325,121270.0,121260.0,2.93002424]
[1755152686947,0.08372325,121270.0,121260.0,2.85724685]
[1755152687579,0.001,121270.0,121260.0,2.85724685]
[1755152687808,0.001,121270.0,121260.0,2.63508117]
[1755152688012,0.001,121270.0,121260.0,2.76296117]
[1755152688221,0.003,121280.0,121270.0,0.16492125]
[1755152688426,0.003,121280.0,121270.0,0.29280125]
[1755152688631,0.003,121280.0,121270.0,0.39623557]
[1755152689086,0.003,121280.0,121270.0,0.73623557]
[1755152689306,0.003,121280.0,121270.0,0.74486466]
[1755152690178,0.003,121280.0,121270.0,0.74686466]
[1755152691910,0.003,121280.0,121270.0,0.74786466]
[1755152693298,0.003,121280.0,121270.0,0.61998466]
[1755152693533,0.003,121280.0,121270.0,0.77274466]
[1755152694567,1e-08,121280.0,121270.0,0.77274466]
[1755152694977,1e-08,121280.0,121270.0,0.87550466]
[1755152695188,1e-08,121280.0,121270.0,1.07314466]
[1755152695399,1e-08,121280.0,121270.0,0.96971034]
[1755152696216,1e-08,121280.0,121270.0,0.99471034]
[1755152696433,0.003,121290.0,121280.0,0.50490765]
[1755152696650,0.003,121290.0,121280.0,0.73585098]
[1755152696860,0.003,121290.0,121280.0,0.63313098]
[1755152697066,0.003,121300.0,121290.0,0.16489405]
[1755152697280,0.003,121300.0,121290.0,0.29261405]
[1755152697483,0.003,121300.0,121290.0,0.31761405]
[1755152697899,0.003,121300.0,121290.0,0.65781738]
[1755152698035,0.003,121300.0,121290.0,0.78553738]
[1755152698702,1e-08,121300.0,121290.0,0.68281738]
[1755152698928,1e-08,121300.0,121290.0,0.70831405]
[1755152699108,1e-08,121300.0,121290.0,0.55559405]
[1755152699322,1e-08,121300.0,121290.0,0.85560434]
[1755152699624,1e-08,121300.0,121290.0,0.72688434]
[1755152699854,1e-08,121300.0,121290.0,0.85460434]
[1755152700178,1e-08,121300.0,121290.0,0.70931405]
[1755152700381,1e-08,121300.0,121290.0,0.6643173]
[1755152700631,1e-08,121300.0,121290.0,0.7920373]
[1755152700832,1e-08,121310.0,121300.0,0.55488046]
[1755152701044,1e-08,121320.0,121310.0,0.55486687]
[1755152701296,0.00599,121340.0,121330.0,0.50483969]
[1755152701297,0.003,121340.0,121330.0,0.50483969]
[1755152701505,0.003,121340.0,121330.0,0.65755969]
[1755152702134,1e-08,121340.0,121330.0,0.70725169]
[1755152702356,1e-08,121340.0,121330.0,0.73593252]
[1755152702560,1e-08,121340.0,121330.0,0.86365252]
[1755152702980,1e-08,121340.0,121330.0,0.76539837]
[1755152703193,1e-08,121340.0,121330.0,0.89311837]
[1755152703820,1e-08,121340.0,121330.0,0.78997494]
[1755152704347,1e-08,121340.0,121330.0,0.86337075]
[1755152704575,1e-08,121340.0,121330.0,0.86537075]
[1755152705009,1e-08,121340.0,121330.0,0.97009075]
[1755152705218,1e-08,121340.0,121330.0,1.16761075]
[1755152705639,1e-08,121340.0,121330.0,0.93721075]
[1755152706024,1e-08,121340.0,121330.0,0.73965075]
[1755152706233,1e-08,121340.0,121330.0,0.86733075]
[1755152708258,1e-08,121340.0,121330.0,0.73965075]
[1755152708475,1e-08,121340.0,121330.0,0.79389494]
[1755152710899,1e-08,121340.0,121330.0,0.86729075]
[1755152711428,1e-08,121340.0,121330.0,0.84229075]
[1755152711688,1e-08,121340.0,121330.0,0.73965075]
[1755152711892,1e-08,121340.0,121330.0,0.86729075]
[1755152715184,1e-08,121340.0,121330.0,1.16745075]
[1755152717783,1e-08,121340.0,121330.0,1.06477075]
[1755152718452,1e-08,121340.0,121330.0,0.99137494]
[1755152718877,0.06678228,121370.0,121360.0,0.50479894]
[1755152719084,0.33090228,121370.0,121360.0,0.63243894]
[1755152719640,0.33090228,121370.0,121360.0,0.64079915]
[1755152720500,0.11191228,121370.0,121360.0,0.16479894]
[1755152720701,0.20963207,121370.0,121360.0,0.29239894]
[1755152720852,0.21284207,121370.0,121360.0,0.29239894]
[1755152721056,0.21384207,121370.0,121360.0,0.29239894]
[1755152721259,0.21384957,121370.0,121360.0,0.29239894]
[1755152721665,0.21384957,121370.0,121360.0,0.16479894]
[1755152721851,0.21384957,121370.0,121360.0,0.29239894]
[1755152723870,0.21384957,121370.0,121350.0,0.16480124]
[1755152723871,0.72263996,121370.0,121330.0,0.23814487]
[1755152724049,0.06684771,121350.0,121340.0,0.29242521]
[1755152724269,0.212915,121350.0,121340.0,0.28917521]
[1755152725018,0.212915,121350.0,121340.0,0.59757651]
[1755152725631,0.215915,121350.0,121340.0,0.59757651]
[1755152725842,0.215915,121350.0,121340.0,0.30016]
[1755152726052,0.215915,121350.0,121340.0,0.5925861]
[1755152727131,0.216915,121350.0,121340.0,0.5925861]
[1755152727718,0.216915,121350.0,121340.0,0.42776]
[1755152728302,0.216915,121350.0,121340.0,0.5925861]
[1755152728514,0.216915,121350.0,121340.0,0.3623061]
[1755152728717,0.216915,121350.0,121340.0,0.4899061]
[1755152728927,0.15006729,121350.0,121340.0,0.4899061]
[1755152730105,0.13506325,121350.0,121340.0,0.4899061]
[1755152730331,0.15012528,121350.0,121340.0,0.4899061]
[1755152730832,0.15012528,121350.0,121340.0,0.2924261]
[1755152731125,0.10711528,121350.0,121340.0,0.2924261]
[1755152731329,0.10178528,121350.0,121340.0,0.2944161]
[1755152731560,0.01906203,121350.0,121340.0,0.2974961]
[1755152731763,0.02118203,121350.0,121340.0,0.1668161]
[1755152731965,0.02439203,121350.0,121340.0,0.2924261]
[1755152732325,0.02439203,121350.0,121340.0,0.2944161]
[1755152732534,0.02018203,121350.0,121340.0,0.2944161]
[1755152732772,0.02118203,121350.0,121340.0,0.2944161]
[1755152733083,0.00612,121350.0,121340.0,0.2944161]
[1755152733298,0.0211772,121350.0,121340.0,0.2944161]
[1755152733881,0.0243872,121350.0,121340.0,0.1648261]
[1755152734060,0.0243872,121350.0,121340.0,0.2924261]
[1755152734472,0.0213872,121350.0,121340.0,0.2924261]
[1755152734899,0.0191772,121350.0,121340.0,0.2924261]
[1755152735138,0.10511045,121350.0,121340.0,0.4650261]
[1755152735351,0.17195816,121350.0,121340.0,0.5926261]
[1755152735747,0.17195816,121350.0,121340.0,0.4650261]
[1755152735995,0.18915398,121350.0,121340.0,0.19752]
[1755152736209,0.17195816,121350.0,121340.0,0.4899461]
[1755152736435,0.10511045,121350.0,121340.0,0.4899461]
[1755152737954,0.09978045,121350.0,121340.0,0.1669761]
[1755152738163,0.09978045,121350.0,121340.0,0.2945761]
[1755152738622,0.0170572,121350.0,121340.0,0.2977561]
[1755152739784,0.06684771,121370.0,121340.0,0.2977561]
[1755152739995,0.023,121380.0,121370.0,0.16478536]
[1755152740212,0.023,121380.0,121370.0,0.29453536]
[1755152740421,0.023,121380.0,121370.0,0.17011536]
[1755152740635,0.023,121380.0,121370.0,0.29771536]
[1755152740847,0.023,121380.0,121370.0,0.71102054]
[1755152741277,1e-08,121380.0,121370.0,0.73602054]
[1755152742094,1e-08,121380.0,121370.0,0.74450121]
[1755152742736,1e-08,121380.0,121370.0,0.75391928]
[1755152743160,1e-08,121380.0,121370.0,0.75491928]
[1755152743399,0.0032,121400.0,121390.0,0.50475821]
[1755152743612,0.003,121410.0,121400.0,0.16474464]
[1755152743846,0.003,121420.0,121410.0,0.16473107]
[1755152744069,0.06704771,121430.0,121420.0,0.1647175]
[1755152744291,0.06704771,121430.0,121420.0,0.2954975]
[1755152744746,0.00594,121470.0,121460.0,0.16466326]
[1755152744952,0.08866325,121470.0,121460.0,0.29226326]
[1755152745158,0.003,121470.0,121460.0,0.59242326]
[1755152746215,0.00594,121470.0,121460.0,0.36214326]
[1755152746426,0.08866325,121470.0,121460.0,0.48974326]
[1755152746855,0.09066325,121470.0,121460.0,0.48974326]
[1755152747265,0.09566325,121470.0,121460.0,0.48974326]
[1755152748268,0.09566325,121470.0,121460.0,0.29222326]
[1755152748730,0.01,121470.0,121460.0,0.29222326]
[1755152749733,0.01,121470.0,121460.0,0.29437326]
[1755152750164,0.01196,121470.0,121460.0,0.29437326]
[1755152750376,0.0149,121470.0,121460.0,0.29222326]
[1755152750731,0.01196,121470.0,121460.0,0.29437326]
[1755152750937,0.01,121470.0,121460.0,0.29437326]
[1755152751135,0.01,121470.0,121460.0,0.29767326]
[1755152751457,0.00898,121470.0,121460.0,0.16999326]
[1755152751621,0.00898,121470.0,121460.0,0.29791326]
[1755152752194,0.00198,121470.0,121460.0,0.29791326]
[1755152752400,0.00298,121470.0,121460.0,0.29791326]
[1755152752607,0.00298,121470.0,121460.0,0.30272228]
[1755152752806,0.00198,121470.0,121460.0,0.30272228]
[1755152753218,0.00298,121470.0,121460.0,0.30272228]
[1755152753705,0.00598,121470.0,121460.0,0.30272228]
[1755152754141,0.00598,121470.0,121460.0,0.29791326]
[1755152754351,0.00798,121470.0,121460.0,0.29791326]
[1755152754937,0.00798,121470.0,121460.0,0.16466326]
[1755152754938,0.00994,121470.0,121460.0,0.16466326]
[1755152755138,0.01288,121470.0,121460.0,0.59250326]
[1755152755510,0.00994,121470.0,121460.0,0.46466326]
[1755152755722,0.00994,121470.0,121460.0,0.49197326]
[1755152756558,0.09560325,121470.0,121460.0,0.16466326]
[1755152756891,0.09560325,121470.0,121460.0,0.29242326]
[1755152757104,0.09266325,121470.0,121460.0,0.29457326]
[1755152757357,0.00798,121470.0,121460.0,0.16999326]
[1755152757563,0.00798,121470.0,121460.0,0.29775326]
[1755152758134,0.00798,121470.0,121460.0,0.19042626]
[1755152759095,0.00798,121470.0,121460.0,0.19038626]
[1755152759639,0.00798,121470.0,121460.0,0.18720626]
[1755152759850,0.01288,121470.0,121460.0,0.18720626]
[1755152760051,0.01288,121470.0,121460.0,0.18505626]
[1755152760420,0.00994,121470.0,121460.0,0.18505626]
[1755152760840,0.01288,121470.0,121460.0,0.18505626]
[1755152761055,0.01288,121470.0,121460.0,0.18521626]
[1755152761271,0.00798,121470.0,121460.0,0.05948626]
[1755152761483,0.00798,121470.0,121460.0,0.18732626]
[1755152762532,0.00994,121470.0,121460.0,0.18732626]
[1755152762736,0.01288,121470.0,121460.0,0.18517626]
[1755152763366,0.01288,121470.0,121460.0,0.18732626]
[1755152763367,0.00994,121470.0,121460.0,0.18732626]
[1755152763593,0.00798,121470.0,121460.0,0.18732626]
[1755152763794,0.00798,121470.0,121460.0,0.05948626]
[1755152764018,0.00798,121470.0,121460.0,0.19062626]
[1755152764586,0.00798,121470.0,121460.0,0.18744626]
[1755152765036,0.00798,121470.0,121460.0,0.48736626]
[1755152766235,0.02295838,121470.0,121460.0,0.49054626]
[1755152766435,0.00798,121470.0,121460.0,0.85554626]
[1755152766668,0.00798,121470.0,121460.0,0.75294626]
[1755152768151,0.02299609,121470.0,121460.0,0.75294626]
[1755152769003,0.00798,121470.0,121460.0,0.75294626]
[1755152769212,0.02302041,121470.0,121460.0,0.75294626]
[1755152769411,0.02302041,121470.0,121460.0,0.82655011]
[1755152769625,0.02202041,121470.0,121460.0,0.82655011]
[1755152769810,0.01702041,121470.0,121460.0,0.82655011]
[1755152770234,0.01907885,121470.0,121460.0,0.60105011]
[1755152770436,0.02225885,121470.0,121460.0,0.59890011]
[1755152770781,0.02325885,121470.0,121460.0,0.18529626]
[1755152771171,0.65745025,121470.0,121460.0,0.18529626]
[1755152771374,0.17282981,121470.0,121460.0,0.18529626]
[1755152771538,0.67673323,121470.0,121450.0,0.16467682]
[1755152771741,0.57052369,121460.0,121450.0,0.16467682]
[1755152772027,0.1009621,121460.0,121450.0,0.29267682]
[1755152772489,0.1009621,121460.0,121450.0,0.16467682]
[1755152772687,0.58558254,121460.0,121450.0,0.29267682]
[1755152773177,0.1009621,121460.0,121450.0,0.29467682]
[1755152773419,0.1009621,121460.0,121450.0,0.16667682]
[1755152773609,0.1009621,121460.0,121450.0,0.29267682]
[1755152773852,0.0997821,121460.0,121450.0,0.16467682]
[1755152774066,0.1007821,121460.0,121450.0,0.16467682]
[1755152774178,0.01805885,121460.0,121450.0,0.16467682]
[1755152774391,0.01805885,121460.0,121450.0,0.36632067]
[1755152775047,0.01805885,121460.0,121450.0,0.66624067]
[1755152775405,0.01705885,121460.0,121450.0,0.66624067]
[1755152776008,0.01505885,121460.0,121450.0,0.66624067]
[1755152776486,0.01605885,121460.0,121450.0,0.66624067]
[1755152777161,0.01909885,121460.0,121450.0,0.66624067]
[1755152777364,0.02183885,121460.0,121450.0,0.66624067]
[1755152778350,0.001,121460.0,121450.0,0.23828067]
[1755152778538,1e-08,121480.0,121470.0,0.5296497]
[1755152778781,1e-08,121480.0,121470.0,0.73153355]
[1755152778979,1e-08,121480.0,121470.0,0.73933313]
[1755152779382,1e-08,121480.0,121470.0,0.6361897]
[1755152779758,1e-08,121480.0,121470.0,0.73933313]
[1755152780139,1e-08,121500.0,121490.0,0.1646226]
[1755152780332,1e-08,121500.0,121490.0,0.36987699]
[1755152780668,1e-08,121500.0,121490.0,0.36665699]
[1755152781090,0.00318001,121500.0,121490.0,0.23837699]
[1755152781454,0.08590326,121500.0,121490.0,0.2929426]
[1755152781585,0.08590326,121500.0,121490.0,0.36669699]
[1755152782212,0.08590326,121500.0,121490.0,0.1646226]
[1755152782623,0.08590326,121500.0,121490.0,0.2929426]
[1755152782841,0.08690326,121500.0,121490.0,0.1646226]
[1755152783261,0.08690326,121500.0,121490.0,0.2929426]
[1755152783550,0.08690326,121500.0,121490.0,0.2929026]
[1755152783758,0.58021403,121500.0,121490.0,0.2929026]
[1755152783963,0.6155837,121500.0,121490.0,0.12828]
[1755152784114,0.6155837,121500.0,121490.0,0.2929026]
[1755152784323,0.6165837,121500.0,121490.0,0.2929026]
[1755152784734,0.6165837,121500.0,121480.0,0.16462509]
[1755152784937,0.61458369,121490.0,121470.0,0.27288218]
[1755152785138,0.48780044,121480.0,121470.0,0.26523718]
[1755152785345,0.61458369,121480.0,121470.0,0.52808]
[1755152785584,0.95458369,121480.0,121470.0,0.52808]
[1755152786431,0.95458369,121480.0,121470.0,0.6927297]
[1755152786598,0.95758369,121480.0,121470.0,0.52808]
[1755152786941,0.47296325,121480.0,121470.0,0.39984]
[1755152787153,0.95758369,121480.0,121470.0,0.6927297]
[1755152787355,0.95758369,121480.0,121470.0,0.52808]
[1755152788451,1.05733242,121480.0,121470.0,0.52808]